fUSD/lending_fUSD_20250103
["ID","MTS","AMOUNT","RATE_DAILY","PERIOD"]
[347525268,1735903838074,-767.03,8.987e-05,2]
[347525269,1735903838084,-500.0,8.987e-05,2]
[347525270,1735903838094,-500.0,8.987e-05,2]
[347525271,1735903838104,-9955.92,8.987e-05,2]
[347525272,1735903838114,-1327.33,8.987e-05,2]
[347525273,1735903838123,-1049.06,8.987e-05,2]
[347525274,1735903838132,-1309.52,8.987e-05,2]
[347525275,1735903838142,-500.0,8.987e-05,2]
[347525276,1735903838151,-500.0,8.987e-05,2]
[347525277,1735903838160,-500.0,8.987e-05,2]
[347525278,1735903838170,-500.0,8.987e-05,2]
[347525279,1735903838179,-500.0,8.987e-05,2]
[347525280,1735903838189,-500.0,8.987e-05,2]
[347525281,1735903838198,-500.0,8.987e-05,2]
[347525282,1735903838208,-664.53,8.987e-05,2]
[347525284,1735903838217,-500.0,8.987e-05,2]
[347525285,1735903838226,-505.61,8.987e-05,2]
[347525286,1735903838236,-1236.06,8.987e-05,2]
[347525288,1735903838245,-500.0,8.987e-05,2]
[347525289,1735903838255,-1049.3,8.987e-05,2]
[347525290,1735903838265,-500.0,8.987e-05,2]
[347525291,1735903838274,-504.97,8.987e-05,2]
[347525292,1735903838284,-500.0,8.987e-05,2]
[347525293,1735903838294,-500.0,8.987e-05,2]
[347525294,1735903838303,-500.0,8.987e-05,2]
[347525295,1735903838314,-500.0,8.987e-05,2]
[347525296,1735903838323,-1004.02,8.987e-05,2]
[347525297,1735903838333,-500.0,8.987e-05,2]
[347525298,1735903838342,-500.0,8.987e-05,2]
[347525299,1735903838353,-1789.45,8.987e-05,2]
[347525300,1735903838363,-554.9,8.987e-05,2]
[347525301,1735903838372,-906.72,8.987e-05,2]
[347525302,1735903838381,-553.7,8.987e-05,2]
[347525303,1735903838390,-542.79,8.987e-05,2]
[347525304,1735903838400,-500.0,8.987e-05,2]
[347525305,1735903838410,-500.0,8.987e-05,2]
[347525306,1735903838419,-3848.06,8.987e-05,2]
[347525307,1735903838429,-1337.39,8.987e-05,2]
[347525308,1735903838438,-500.0,8.987e-05,2]
[347525309,1735903838448,-1814.07,8.987e-05,2]
[347525310,1735903838458,-697.05,8.987e-05,2]
[347525311,1735903838467,-916.41,8.987e-05,2]
[347525312,1735903838477,-500.0,8.987e-05,2]
[347525313,1735903838487,-500.0,8.987e-05,2]
[347525314,1735903838496,-500.0,8.987e-05,2]
[347525315,1735903838505,-500.0,8.987e-05,2]
[347525316,1735903838514,-671.77,8.987e-05,2]
[347525317,1735903838523,-1400.09,8.987e-05,2]
[347525318,1735903838533,-500.0,8.987e-05,2]
[347525319,1735903838542,-500.0,8.987e-05,2]
[347525320,1735903838552,-500.0,8.987e-05,2]
[347525321,1735903838561,-500.0,8.987e-05,2]
[347525322,1735903838571,-706.51,8.987e-05,2]
[347525323,1735903838581,-500.0,8.987e-05,2]
[347525324,1735903838590,-1126.89,8.987e-05,2]
[347525325,1735903838602,-500.0,8.987e-05,2]
[347525326,1735903838612,-500.0,8.987e-05,2]
[347525327,1735903838622,-930.74,8.987e-05,2]
[347525328,1735903838632,-601.77,8.987e-05,2]
[347525329,1735903838641,-784.61,8.987e-05,2]
[347525330,1735903838651,-903.83,8.987e-05,2]
[347525331,1735903838660,-2126.45,8.987e-05,2]
[347525332,1735903838669,-500.0,8.987e-05,2]
[347525333,1735903838678,-1232.35,8.987e-05,2]
[347525334,1735903838688,-500.0,8.987e-05,2]
[347525335,1735903838698,-629.11,8.987e-05,2]
[347525336,1735903838707,-1624.67,8.987e-05,2]
[347525337,1735903838718,-1521.21,8.987e-05,2]
[347525338,1735903838730,-500.0,8.987e-05,2]
[347525339,1735903838740,-500.0,8.987e-05,2]
[347525340,1735903838749,-624.24,8.987e-05,2]
[347525341,1735903838758,-1753.83,8.987e-05,2]
[347525343,1735903838767,-1708.38,8.987e-05,2]
[347525345,1735903838776,-519.48,8.987e-05,2]
[347525346,1735903838784,-4100.57,8.987e-05,2]
[347525348,1735903838794,-500.0,8.987e-05,2]
[347525350,1735903838803,-500.0,8.987e-05,2]
[347525352,1735903838812,-674.1,8.987e-05,2]
[347525354,1735903838821,-2066.74,8.987e-05,2]
[347525356,1735903838830,-500.0,8.987e-05,2]
[347525357,1735903838839,-500.0,8.987e-05,2]
[347525358,1735903838849,-831.55,8.987e-05,2]
[347525359,1735903838858,-500.0,8.987e-05,2]
[347525360,1735903838870,-566.35,8.987e-05,2]
[347525361,1735903838879,-500.0,8.987e-05,2]
[347525362,1735903838889,-500.0,8.987e-05,2]
[347525363,1735903838898,-4058.85,8.987e-05,2]
[347525364,1735903838908,-500.0,8.987e-05,2]
[347525365,1735903838918,-605.11,8.987e-05,2]
[347525366,1735903838927,-637.0,8.987e-05,2]
[347525367,1735903838936,-500.0,8.987e-05,2]
[347525368,1735903838946,-500.0,8.987e-05,2]
[347525369,1735903838955,-500.0,8.987e-05,2]
[347525370,1735903838965,-620.04,8.987e-05,2]
[347525371,1735903838974,-500.0,8.987e-05,2]
[347525372,1735903838982,-500.0,8.987e-05,2]
[347525373,1735903838992,-1381.08,8.987e-05,2]
[347525374,1735903839002,-500.0,8.987e-05,2]
[347525375,1735903839011,-1156.88,8.987e-05,2]
[347525376,1735903839020,-500.0,8.987e-05,2]
[347525377,1735903839030,-500.0,8.987e-05,2]
[347525378,1735903839040,-500.0,8.987e-05,2]
[347525379,1735903839049,-500.0,8.987e-05,2]
[347525380,1735903839058,-906.08,8.987e-05,2]
[347525381,1735903839067,-500.0,8.987e-05,2]
[347525382,1735903839076,-500.0,8.987e-05,2]
[347525383,1735903839086,-500.0,8.987e-05,2]
[347525384,1735903839098,-500.0,8.987e-05,2]
[347525385,1735903839107,-500.0,8.987e-05,2]
[347525386,1735903839117,-2259.83,8.987e-05,2]
[347525387,1735903839127,-500.0,8.987e-05,2]
[347525388,1735903839137,-500.0,8.987e-05,2]
[347525389,1735903839146,-500.0,8.987e-05,2]
[347525390,1735903839156,-500.0,8.988e-05,2]
[347525391,1735903839165,-552.3267157,8.988e-05,2]
[347525392,1735903839174,-500.0,8.988e-05,2]
[347525393,1735903839183,-500.0,8.988e-05,2]
[347525394,1735903839193,-500.0,8.988e-05,2]
[347525395,1735903839203,-500.0,8.988e-05,2]
[347525396,1735903839212,-965.66,8.988e-05,2]
[347525397,1735903839221,-500.0,8.988e-05,2]
[347525398,1735903839231,-500.0,8.988e-05,2]
[347525399,1735903839240,-500.0,8.988e-05,2]
[347525400,1735903839250,-500.0,8.988e-05,2]
[347525401,1735903839259,-500.0,8.988e-05,2]
[347525402,1735903839268,-700.66,8.988e-05,2]
[347525403,1735903839277,-500.0,8.988e-05,2]
[347525404,1735903839286,-150.80821289,8.988e-05,2]
[347525405,1735903839296,-500.0,8.988e-05,2]
[347525406,1735903839305,-500.0,8.988e-05,2]
[347525407,1735903839315,-2450.60375219,8.988e-05,2]
[347525408,1735903840123,-552.62067944,8.988e-05,2]
[347525409,1735903840222,-291.048936,8.988e-05,2]
[347525414,1735903842672,-1000.0,8e-05,2]
[347525415,1735903842682,-300.0,8.455e-05,2]
[347525416,1735903842691,-1905.76,8.986e-05,2]
[347525417,1735903842700,-394.24,8.986e-05,2]
[347525418,1735903842711,-1082.64,8.986e-05,2]
[347525419,1735903842721,-500.0,8.987e-05,2]
[347525420,1735903842731,-3604.36,8.987e-05,2]
[347525421,1735903842743,-254.11,8.987e-05,2]
[347525422,1735903842752,-121.82343072,8.987e-05,2]
[347525435,1735903843383,-500.0,8.986e-05,2]
[347525438,1735903843393,-378.17656928,8.987e-05,2]
[347525441,1735903843403,-4645.04663237,8.988e-05,2]
[347525444,1735903843412,-500.0,8.988e-05,2]
[347525447,1735903843421,-500.0,8.988e-05,2]
[347525451,1735903843431,-536.26,8.988e-05,2]
[347525455,1735903843440,-635.48,8.988e-05,2]
[347525457,1735903843450,-558.47,8.988e-05,2]
[347525462,1735903843459,-500.0,8.988e-05,2]
[347525465,1735903843469,-500.0,8.988e-05,2]
[347525468,1735903843478,-514.29,8.988e-05,2]
[347525470,1735903843487,-500.0,8.988e-05,2]
[347525473,1735903843497,-5549.62,8.988e-05,2]
[347525475,1735903843506,-505.67,8.988e-05,2]
[347525477,1735903843515,-500.0,8.988e-05,2]
[347525479,1735903843524,-557.7,8.988e-05,2]
[347525482,1735903843534,-500.0,8.988e-05,2]
[347525484,1735903843543,-636.0,8.988e-05,2]
[347525486,1735903843553,-500.0,8.988e-05,2]
[347525488,1735903843563,-500.0,8.988e-05,2]
[347525490,1735903843573,-520.71,8.988e-05,2]
[347525492,1735903843582,-641.32,8.988e-05,2]
[347525493,1735903843591,-611.08,8.988e-05,2]
[347525494,1735903843602,-500.0,8.988e-05,2]
[347525495,1735903843612,-500.0,8.988e-05,2]
[347525496,1735903843622,-7296.63,8.988e-05,2]
[347525497,1735903843631,-500.0,8.988e-05,2]
[347525498,1735903843640,-269.28533118,8.988e-05,2]
[347525499,1735903843649,-500.0,8.988e-05,2]
[347525500,1735903843659,-500.0,8.988e-05,2]
[347525501,1735903843668,-500.0,8.988e-05,2]
[347525502,1735903843678,-500.0,8.988e-05,2]
[347525503,1735903843687,-822.03,8.988e-05,2]
[347525504,1735903843696,-500.0,8.988e-05,2]
[347525505,1735903843705,-543.86,8.988e-05,2]
[347525506,1735903843714,-500.0,8.988e-05,2]
[347525507,1735903843723,-500.0,8.988e-05,2]
[347525508,1735903843733,-718.88,8.988e-05,2]
[347525509,1735903843742,-833.36,8.988e-05,2]
[347525510,1735903843751,-503.4,8.988e-05,2]
[347525511,1735903843761,-500.0,8.988e-05,2]
[347525512,1735903843770,-500.0,8.988e-05,2]
[347525513,1735903843779,-500.0,8.988e-05,2]
[347525514,1735903843788,-642.31192734,8.988e-05,2]
[347525515,1735903843798,-500.0,8.988e-05,2]
[347525516,1735903843807,-500.0,8.988e-05,2]
[347525517,1735903843816,-4089.89,8.988e-05,2]
[347525518,1735903843825,-500.0,8.988e-05,2]
[347525519,1735903843834,-1230.62,8.988e-05,2]
[347525520,1735903843844,-500.0,8.988e-05,2]
[347525522,1735903843855,-546.21,8.988e-05,2]
[347525523,1735903843866,-500.0,8.988e-05,2]
[347525524,1735903843877,-500.0,8.988e-05,2]
[347525525,1735903843887,-500.0,8.988e-05,2]
[347525527,1735903843896,-7327.55,8.988e-05,2]
[347525528,1735903843908,-500.0,8.988e-05,2]
[347525529,1735903843917,-500.0,8.988e-05,2]
[347525530,1735903843926,-585.74,8.988e-05,2]
[347525531,1735903843936,-500.0,8.988e-05,2]
[347525532,1735903843946,-500.0,8.988e-05,2]
[347525533,1735903843955,-500.0,8.988e-05,2]
[347525534,1735903843965,-500.0,8.988e-05,2]
[347525535,1735903843976,-500.0,8.988e-05,2]
[347525536,1735903843985,-948.85,8.988e-05,2]
[347525537,1735903843997,-500.0,8.988e-05,2]
[347525538,1735903844007,-500.0,8.988e-05,2]
[347525539,1735903844017,-500.0,8.988e-05,2]
[347525540,1735903844028,-500.0,8.988e-05,2]
[347525541,1735903844038,-1278.67,8.988e-05,2]
[347525542,1735903844048,-500.0,8.988e-05,2]
[347525543,1735903844057,-1574.68,8.988e-05,2]
[347525544,1735903844066,-500.0,8.988e-05,2]
[347525545,1735903844075,-500.0,8.988e-05,2]
[347525546,1735903844084,-500.0,8.988e-05,2]
[347525547,1735903844095,-534.93,8.988e-05,2]
[347525548,1735903844106,-500.0,8.988e-05,2]
[347525549,1735903844115,-500.0,8.988e-05,2]
[347525550,1735903844125,-500.0,8.988e-05,2]
[347525551,1735903844134,-1018.56,8.988e-05,2]
[347525552,1735903844144,-500.0,8.988e-05,2]
[347525553,1735903844153,-6154.2,8.988e-05,2]
[347525554,1735903844162,-500.0,8.988e-05,2]
[347525555,1735903844172,-500.0,8.988e-05,2]
[347525556,1735903844182,-566.36,8.988e-05,2]
[347525557,1735903844192,-1511.16,8.988e-05,2]
[347525558,1735903844202,-500.0,8.988e-05,2]
[347525559,1735903844211,-500.0,8.988e-05,2]
[347525560,1735903844221,-836.15,8.988e-05,2]
[347525561,1735903844231,-500.0,8.988e-05,2]
[347525562,1735903844241,-500.0,8.988e-05,2]
[347525563,1735903844250,-500.0,8.988e-05,2]
[347525564,1735903844259,-500.0,8.988e-05,2]
[347525565,1735903844269,-500.0,8.988e-05,2]
[347525566,1735903844280,-849.26,8.988e-05,2]
[347525567,1735903844289,-500.0,8.988e-05,2]
[347525568,1735903844300,-500.0,8.988e-05,2]
[347525569,1735903844309,-500.0,8.988e-05,2]
[347525570,1735903844319,-641.41,8.988e-05,2]
[347525571,1735903844329,-559.6115186,8.988e-05,2]
[347525572,1735903844338,-500.0,8.988e-05,2]
[347525573,1735903844349,-500.0,8.988e-05,2]
[347525574,1735903844359,-1027.14,8.988e-05,2]
[347525575,1735903844368,-632.01,8.988e-05,2]
[347525576,1735903844378,-909.52,8.988e-05,2]
[347525577,1735903844388,-1663.85,8.988e-05,2]
[347525578,1735903844398,-3662.35,8.988e-05,2]
[347525579,1735903844407,-500.0,8.988e-05,2]
[347525580,1735903844418,-1377.16,8.988e-05,2]
[347525581,1735903844427,-526.73,8.988e-05,2]
[347525582,1735903844436,-793.4,8.988e-05,2]
[347525583,1735903844445,-500.0,8.988e-05,2]
[347525584,1735903844454,-500.0,8.988e-05,2]
[347525585,1735903844464,-248.95680877,8.988e-05,2]
[347525586,1735903844473,-500.0,8.988e-05,2]
[347525587,1735903844482,-500.0,8.988e-05,2]
[347525588,1735903844491,-612.93,8.988e-05,2]
[347525589,1735903844501,-500.0,8.988e-05,2]
[347525590,1735903844510,-500.0,8.988e-05,2]
[347525591,1735903844520,-545.36,8.988e-05,2]
[347525592,1735903844530,-500.0,8.988e-05,2]
[347525593,1735903844539,-500.0,8.988e-05,2]
[347525594,1735903844549,-661.81,8.988e-05,2]
[347525595,1735903844558,-647.05,8.988e-05,2]
[347525596,1735903844568,-2889.36,8.988e-05,2]
[347525597,1735903844577,-582.93,8.988e-05,2]
[347525598,1735903844587,-3413.73,8.988e-05,2]
[347525599,1735903844596,-510.38,8.988e-05,2]
[347525600,1735903844609,-713.31,8.988e-05,2]
[347525601,1735903844619,-500.0,8.988e-05,2]
[347525602,1735903844629,-500.0,8.988e-05,2]
[347525603,1735903844638,-1305.11,8.988e-05,2]
[347525604,1735903844648,-500.0,8.988e-05,2]
[347525605,1735903844657,-540.79,8.988e-05,2]
[347525606,1735903844667,-1566.1,8.988e-05,2]
[347525607,1735903844676,-500.0,8.988e-05,2]
[347525608,1735903844686,-500.0,8.988e-05,2]
[347525609,1735903844695,-518.53,8.988e-05,2]
[347525610,1735903844705,-500.0,8.988e-05,2]
[347525611,1735903844715,-500.0,8.988e-05,2]
[347525612,1735903844724,-3823.37,8.988e-05,2]
[347525613,1735903844734,-500.0,8.988e-05,2]
[347525614,1735903844744,-2969.57,8.988e-05,2]
[347525615,1735903844754,-593.91,8.988e-05,2]
[347525616,1735903844764,-500.0,8.988e-05,2]
[347525617,1735903844774,-732.01,8.988e-05,2]
[347525618,1735903844784,-614.81,8.988e-05,2]
[347525619,1735903844794,-500.0,8.988e-05,2]
[347525620,1735903844803,-2547.69,8.988e-05,2]
[347525621,1735903844813,-500.0,8.988e-05,2]
[347525622,1735903844823,-500.0,8.988e-05,2]
[347525623,1735903844832,-500.0,8.988e-05,2]
[347525624,1735903844843,-500.0,8.988e-05,2]
[347525625,1735903844854,-500.0,8.988e-05,2]
[347525626,1735903844864,-590.72,8.988e-05,2]
[347525627,1735903844878,-500.0,8.988e-05,2]
[347525628,1735903844888,-708.21,8.988e-05,2]
[347525629,1735903844897,-500.0,8.988e-05,2]
[347525630,1735903844906,-1451.02,8.988e-05,2]
[347525631,1735903844917,-604.56,8.988e-05,2]
[347525632,1735903844926,-1239.18,8.988e-05,2]
[347525633,1735903844935,-1012.03,8.988e-05,2]
[347525634,1735903844945,-500.0,8.988e-05,2]
[347525635,1735903844955,-500.0,8.988e-05,2]
[347525636,1735903844965,-1218.93,8.988e-05,2]
[347525637,1735903844974,-500.0,8.988e-05,2]
[347525638,1735903844983,-500.0,8.988e-05,2]
[347525639,1735903844993,-563.86,8.988e-05,2]
[347525640,1735903845003,-500.0,8.988e-05,2]
[347525641,1735903845012,-500.0,8.988e-05,2]
[347525642,1735903845022,-500.0,8.988e-05,2]
[347525643,1735903845031,-536.88,8.988e-05,2]
[347525644,1735903845041,-500.0,8.988e-05,2]
[347525645,1735903845050,-500.0,8.988e-05,2]
[347525646,1735903845059,-500.0,8.988e-05,2]
[347525647,1735903845068,-500.0,8.988e-05,2]
[347525648,1735903845077,-500.0,8.988e-05,2]
[347525649,1735903845086,-500.0,8.988e-05,2]
[347525650,1735903845095,-841.48,8.988e-05,2]
[347525651,1735903845105,-856.82,8.988e-05,2]
[347525652,1735903845115,-6014.05,8.988e-05,2]
[347525653,1735903845124,-500.0,8.988e-05,2]
[347525654,1735903845134,-1206.92,8.988e-05,2]
[347525655,1735903845143,-500.0,8.988e-05,2]
[347525656,1735903845152,-847.59,8.988e-05,2]
[347525657,1735903845162,-500.0,8.988e-05,2]
[347525658,1735903845171,-500.0,8.988e-05,2]
[347525659,1735903845180,-500.0,8.988e-05,2]
[347525660,1735903845190,-500.0,8.988e-05,2]
[347525661,1735903845199,-500.0,8.988e-05,2]
[347525662,1735903845208,-500.0,8.988e-05,2]
[347525663,1735903845218,-500.0,8.988e-05,2]
[347525664,1735903845227,-500.0,8.988e-05,2]
[347525665,1735903845236,-1042.25,8.988e-05,2]
[347525666,1735903845246,-808.75,8.988e-05,2]
[347525667,1735903845255,-500.0,8.988e-05,2]
[347525668,1735903845265,-2043.7,8.988e-05,2]
[347525669,1735903845274,-500.0,8.988e-05,2]
[347525670,1735903845284,-500.0,8.988e-05,2]
[347525671,1735903845293,-845.37,8.988e-05,2]
[347525672,1735903845302,-500.0,8.988e-05,2]
[347525673,1735903845311,-1103.33,8.988e-05,2]
[347525674,1735903845321,-500.0,8.988e-05,2]
[347525675,1735903845331,-500.0,8.988e-05,2]
[347525676,1735903845340,-655.99,8.988e-05,2]
[347525677,1735903845349,-500.0,8.988e-05,2]
[347525678,1735903845359,-500.0,8.988e-05,2]
[347525679,1735903845368,-640.49,8.988e-05,2]
[347525680,1735903845377,-500.0,8.988e-05,2]
[347525681,1735903845387,-767.36,8.988e-05,2]
[347525682,1735903845396,-1893.34,8.988e-05,2]
[347525683,1735903845406,-500.0,8.988e-05,2]
[347525684,1735903845415,-579.06,8.988e-05,2]
[347525685,1735903845425,-500.0,8.988e-05,2]
[347525686,1735903845434,-1366.68,8.988e-05,2]
[347525687,1735903845444,-2621.28,8.988e-05,2]
[347525688,1735903845453,-1163.41,8.988e-05,2]
[347525689,1735903845462,-500.0,8.988e-05,2]
[347525690,1735903845471,-500.0,8.988e-05,2]
[347525691,1735903845480,-564.25,8.988e-05,2]
[347525692,1735903845489,-500.0,8.988e-05,2]
[347525693,1735903845499,-4056.18,8.988e-05,2]
[347525694,1735903845508,-1149.16,8.988e-05,2]
[347525695,1735903845517,-500.0,8.988e-05,2]
[347525696,1735903845527,-7683.91,8.988e-05,2]
[347525697,1735903845536,-500.0,8.988e-05,2]
[347525698,1735903845545,-1017.12,8.988e-05,2]
[347525699,1735903845554,-500.0,8.988e-05,2]
[347525700,1735903845564,-1827.02,8.988e-05,2]
[347525701,1735903845573,-500.0,8.988e-05,2]
[347525702,1735903845582,-6916.34,8.988e-05,2]
[347525703,1735903845591,-1147.15,8.988e-05,2]
[347525704,1735903845600,-500.0,8.988e-05,2]
[347525705,1735903845610,-500.0,8.988e-05,2]
[347525706,1735903845620,-500.0,8.988e-05,2]
[347525707,1735903845629,-1250.64,8.988e-05,2]
[347525708,1735903845639,-2892.25,8.988e-05,2]
[347525709,1735903845649,-500.0,8.988e-05,2]
[347525710,1735903845659,-533.34,8.988e-05,2]
[347525711,1735903845668,-1470.8,8.988e-05,2]
[347525712,1735903845678,-500.0,8.988e-05,2]
[347525713,1735903845687,-1308.98,8.988e-05,2]
[347525714,1735903845697,-820.99,8.988e-05,2]
[347525715,1735903845707,-500.0,8.988e-05,2]
[347525716,1735903845716,-328.47430104,8.988e-05,2]
[347525717,1735903845725,-531.16,8.988e-05,2]
[347525718,1735903845737,-870.07,8.988e-05,2]
[347525719,1735903845747,-500.0,8.988e-05,2]
[347525720,1735903845755,-500.0,8.988e-05,2]
[347525721,1735903845765,-500.0,8.988e-05,2]
[347525722,1735903845774,-955.16,8.988e-05,2]
[347525723,1735903845783,-2096.11,8.988e-05,2]
[347525724,1735903845793,-1992.0,8.988e-05,2]
[347525725,1735903845802,-500.0,8.988e-05,2]
[347525726,1735903845811,-500.0,8.988e-05,2]
[347525727,1735903845820,-1066.78,8.988e-05,2]
[347525728,1735903845830,-1194.8,8.988e-05,2]
[347525729,1735903845840,-589.18,8.988e-05,2]
[347525730,1735903845850,-1498.73,8.988e-05,2]
[347525731,1735903845859,-500.0,8.988e-05,2]
[347525732,1735903845873,-500.0,8.988e-05,2]
[347525733,1735903845883,-500.0,8.988e-05,2]
[347525734,1735903845892,-500.0,8.988e-05,2]
[347525735,1735903845904,-500.0,8.988e-05,2]
[347525736,1735903845914,-150.0,8.988e-05,2]
[347525737,1735903845924,-500.0,8.988e-05,2]
[347525738,1735903845933,-1403.54,8.988e-05,2]
[347525739,1735903845943,-500.0,8.988e-05,2]
[347525740,1735903845952,-5000.0,8.988e-05,2]
[347525741,1735903845961,-953.21,8.988e-05,2]
[347525742,1735903845971,-1003.93,8.988e-05,2]
[347525743,1735903845980,-500.0,8.988e-05,2]
[347525744,1735903845990,-1239.98,8.988e-05,2]
[347525745,1735903845999,-500.0,8.988e-05,2]
[347525746,1735903846008,-801.59,8.988e-05,2]
[347525747,1735903846017,-802.33,8.988e-05,2]
[347525748,1735903846026,-4276.72,8.988e-05,2]
[347525749,1735903846036,-500.0,8.988e-05,2]
[347525750,1735903846045,-500.0,8.988e-05,2]
[347525751,1735903846054,-886.72,8.988e-05,2]
[347525752,1735903846063,-500.0,8.988e-05,2]
[347525753,1735903846072,-1438.69,8.988e-05,2]
[347525754,1735903846082,-3850.57,8.988e-05,2]
[347525755,1735903846091,-5038.93,8.988e-05,2]
[347525756,1735903846100,-2593.99,8.988e-05,2]
[347525757,1735903846109,-1284.41,8.988e-05,2]
[347525758,1735903846119,-500.0,8.988e-05,2]
[347525759,1735903846128,-500.0,8.988e-05,2]
[347525760,1735903846138,-3257.07,8.988e-05,2]
[347525761,1735903846147,-500.0,8.988e-05,2]
[347525762,1735903846157,-500.0,8.988e-05,2]
[347525763,1735903846166,-597.13,8.988e-05,2]
[347525764,1735903846175,-1096.88,8.988e-05,2]
[347525765,1735903846184,-500.0,8.988e-05,2]
[347525766,1735903846193,-6894.52,8.988e-05,2]
[347525767,1735903846202,-500.0,8.988e-05,2]
[347525768,1735903846211,-936.58,8.988e-05,2]
[347525769,1735903846221,-515.87,8.988e-05,2]
[347525772,1735903846230,-500.0,8.988e-05,2]
[347525774,1735903846239,-500.0,8.988e-05,2]
[347525776,1735903846249,-3284.22,8.988e-05,2]
[347525778,1735903846259,-3387.43,8.988e-05,2]
[347525780,1735903846268,-500.0,8.988e-05,2]
[347525782,1735903846277,-1133.0,8.988e-05,2]
[347525784,1735903846286,-917.17,8.988e-05,2]
[347525786,1735903846298,-500.0,8.988e-05,2]
[347525788,1735903846308,-1261.59,8.988e-05,2]
[347525790,1735903846317,-500.0,8.988e-05,2]
[347525792,1735903846326,-500.0,8.988e-05,2]
[347525794,1735903846335,-702.9,8.988e-05,2]
[347525796,1735903846344,-4733.92,8.988e-05,2]
[347525797,1735903846354,-3501.61,8.988e-05,2]
[347525798,1735903846363,-588.73,8.988e-05,2]
[347525799,1735903846373,-500.0,8.988e-05,2]
[347525800,1735903846382,-509.49,8.988e-05,2]
[347525801,1735903846391,-500.0,8.988e-05,2]
[347525802,1735903846401,-500.0,8.988e-05,2]
[347525803,1735903846411,-500.0,8.989e-05,2]
[347525804,1735903846420,-500.0,8.989e-05,2]
[347525805,1735903846430,-3301.88,8.989e-05,2]
[347525806,1735903846439,-1679.44,8.989e-05,2]
[347525807,1735903846448,-7313.71,8.989e-05,2]
[347525808,1735903846458,-500.0,8.989e-05,2]
[347525809,1735903846467,-9786.66,8.989e-05,2]
[347525810,1735903846476,-199.078311,8.999e-05,2]
[347525811,1735903846486,-818106.656398,9e-05,2]
[347525812,1735903846495,-1700.0,9e-05,3]
[347525813,1735903846505,-200.0,9.041e-05,2]
[347525814,1735903846514,-318.639,9.06e-05,2]
[347525815,1735903846524,-1217.3464,9.165e-05,2]
[347525816,1735903846534,-2933.93076733,9.238e-05,2]
[347525817,1735903846544,-500.0,9.259e-05,2]
[347525818,1735903846554,-500.0,9.259e-05,2]
[347525819,1735903846799,-581.16,9.26e-05,2]
[347525820,1735903846809,-1343.21,9.26e-05,2]
[347525821,1735903846819,-500.0,9.26e-05,2]
[347525822,1735903846830,-500.0,9.26e-05,2]
[347525823,1735903846839,-847.24,9.26e-05,2]
[347525824,1735903846850,-1416.5,9.26e-05,2]
[347525825,1735903846860,-500.0,9.26e-05,2]
[347525826,1735903846872,-500.0,9.26e-05,2]
[347525828,1735903846882,-1339.06,9.26e-05,2]
[347525829,1735903846891,-500.0,9.26e-05,2]
[347525830,1735903846903,-1342.34,9.26e-05,2]
[347525831,1735903846914,-1066.66,9.26e-05,2]
[347525832,1735903846923,-822.34,9.26e-05,2]
[347525834,1735903846933,-716.38,9.26e-05,2]
[347525836,1735903846949,-1257.11,9.26e-05,2]
[347525838,1735903846959,-843.53,9.26e-05,2]
[347525840,1735903846968,-1247.47,9.26e-05,2]
[347525842,1735903846977,-500.0,9.26e-05,2]
[347525844,1735903846986,-592.69,9.26e-05,2]
[347525846,1735903846996,-500.0,9.26e-05,2]
[347525848,1735903847005,-1658.3,9.26e-05,2]
[347525850,1735903847014,-500.0,9.26e-05,2]
[347525852,1735903847024,-500.0,9.26e-05,2]
[347525854,1735903847035,-1464.03,9.26e-05,2]
[347525856,1735903847044,-500.0,9.26e-05,2]
[347525858,1735903847054,-500.0,9.26e-05,2]